[Event "Weekend Groninger Combinatie 2019"]
[Site "Groningen"]
[Date "2019.05.31"]
[Round "3.6"]
[White "Duijker, Rick"]
[Black "De Boer, Rein"]
[Result "1-0"]
[ECO "D00"]
[WhiteElo "2164"]
[BlackElo "2053"]
[Annotator "ChessBase"]
[PlyCount "145"]
[EventDate "2019.05.30"]
[EventType "swiss"]
[EventCountry "NED"]
[SourceTitle "playchess.com"]
[Source "ChessBase"]
[SourceQuality "1"]
[TimeControl "5400+30"]

1. d4 {[%emt 0:05:22]} Nf6 {[%emt 0:00:00]} 2. Bg5 {[%emt 0:00:16]} d5 {[%emt 0:00:41]} 3. Bxf6 {[%emt 0:00:10]} exf6 {[%emt 0:00:06]} 4. e3 {[%emt 0:00:08]} Bd6 {[%emt 0:00:03]} 5. g3 {[%emt 0:00:17]} O-O {[%emt 0:00:10]} 6. Bg2 {[%emt 0:00:20]} c6 {[%emt 0:00:03]} 7. Ne2 {[%emt 0:00:13]} Nd7 {[%emt 0:00:22]} 8. O-O {[%emt 0:00:49]} f5 {[%emt 0:00:09]} 9. Nd2 {[%emt 0:00:37]} b5 {[%emt 0:00:25]} 10. a4 {[%emt 0:01:33]} b4 {[%emt 0:00:11]} 11. c4 {[%emt 0:03:08]} bxc3 {[%emt 0:00:22]} 12. bxc3 {[%emt 0:00:20]} Ba6 {[%emt 0:02:08]} 13. c4 {[%emt 0:04:58]} Nf6 {[%emt 0:00:47]} 14. Nc3 {[%emt 0:17:20]} Bb4 {[%emt 0:06:54]} 15. Qb3 {[%emt 0:03:56]} Rb8 {[%emt 0:06:05]} 16. Rfc1 {[%emt 0:04:38]} Ne4 {[%emt 0:10:23]} 17. Ndxe4 {[%emt 0:05:51]} Bxc4 {[%emt 0:08:59]} 18. Qc2 {[%emt 0:00:21]} fxe4 {[%emt 0:00:25]} 19. Nxe4 {[%emt 0:00:31]} f5 {[%emt 0:10:13]} 20. Nd2 {[%emt 0:01:04]} Bxd2 {[%emt 0:00:15]} 21. Qxd2 {[%emt 0:00:10]} Qb6 {[%emt 0:07:18]} 22. Bf1 {[%emt 0:02:43]} Qb4 {[%emt 0:07:10]} 23. Qc2 {[%emt 0:01:02]} Bxf1 {[%emt 0:10:20]} 24. Kxf1 {[%emt 0:00:24]} Rf6 {[%emt 0:06:03]} 25. Rab1 {[%emt 0:03:38]} Qf8 {[%emt 0:00:02]} 26. Rxb8 {[%emt 0:00:43]} Qxb8 {[%emt 0:00:06]} 27. Rb1 {[%emt 0:00:24]} Qc8 {[%emt 0:00:46]} 28. Kg2 {[%emt 0:01:02]} g5 {[%emt 0:00:36]} 29. Qb3 {[%emt 0:24:15]} Rf8 {[%emt 0:05:07]} 30. f3 {[%emt 0:05:31]} Qe6 {[%emt 0:02:00]} 31. Kf2 {[%emt 0:02:22]} g4 {[%emt 0:02:46]} 32. Qd1 {[%emt 0:01:02]} Re8 {[%emt 0:02:40]} 33. Rb3 {[%emt 0:00:45]} h5 {[%emt 0:00:24]} 34. Qe2 {[%emt 0:00:33]} Kg7 {[%emt 0:01:45]} 35. a5 {[%emt 0:01:52]} h4 {[%emt 0:02:23]} 36. Rb7+ {[%emt 0:01:19]} Kf6 {[%emt 0:01:32]} 37. Rh7 {[%emt 0:04:09]} hxg3+ {[%emt 0:00:25]} 38. hxg3 {[%emt 0:00:25]} Kg6 {[%emt 0:00:24]} 39. Rh4 {[%emt 0:00:41]} Qf6 {[%emt 0:01:07]} 40. fxg4 {[%emt 0:01:21]} fxg4+ {[%emt 0:00:38]} 41. Kg2 {[%emt 0:00:03]} Qf3+ {[%emt 0:02:16]} 42. Qxf3 {[%emt 0:00:04]} gxf3+ {[%emt 0:00:01]} 43. Kxf3 {[%emt 0:00:04]} Rf8+ {[%emt 0:00:31]} 44. Ke2 {[%emt 0:02:09]} Rb8 {[%emt 0:00:02]} 45. Rh1 {[%emt 0:00:38]} Rb2+ {[%emt 0:00:23]} 46. Kd3 {[%emt 0:00:42]} Rb3+ {[%emt 0:00:07]} 47. Kd2 {[%emt 0:00:09]} Ra3 {[%emt 0:00:04]} 48. Rc1 {[%emt 0:00:10]} Rxa5 {[%emt 0:00:06]} 49. Rxc6+ {[%emt 0:00:09]} Kf5 {[%emt 0:00:07]} 50. Ke2 {[%emt 0:01:33]} Ke4 {[%emt 0:01:47]} 51. Re6+ {[%emt 0:00:08]} Kf5 {[%emt 0:00:01]} 52. Re7 {[%emt 0:00:18]} Kg4 {[%emt 0:01:22]} 53. Rg7+ {[%emt 0:00:06]} Kf5 {[%emt 0:00:10]} 54. Kf3 {[%emt 0:00:19]} Ra1 {[%emt 0:00:30]} 55. Re7 {[%emt 0:00:54]} Ra5 {[%emt 0:00:31]} 56. g4+ {[%emt 0:01:04]} Kf6 {[%emt 0:00:13]} 57. Re5 {[%emt 0:00:12]} Rb5 {[%emt 0:00:20]} 58. Kf4 {[%emt 0:01:18]} a5 {[%emt 0:00:11]} 59. Re8 {[%emt 0:00:20]} Rb1 {[%emt 0:01:07]} 60. g5+ {[%emt 0:00:27]} Kg6 {[%emt 0:01:22]} 61. Re6+ {[%emt 0:00:10]} Kf7 {[%emt 0:00:09]} 62. Rf6+ {[%emt 0:00:06]} Ke7 {[%emt 0:00:46]} 63. Ra6 {[%emt 0:00:40]} Rf1+ {[%emt 0:02:39]} 64. Ke5 {[%emt 0:00:11]} Rf3 {[%emt 0:00:44]} 65. Re6+ {[%emt 0:00:42]} Kf7 {[%emt 0:00:31]} 66. Kxd5 {[%emt 0:01:25]} a4 {[%emt 0:01:11]} 67. e4 {[%emt 0:00:28]} a3 {[%emt 0:00:35]} 68. Ra6 {[%emt 0:00:15]} Rg3 {[%emt 0:00:05]} 69. e5 {[%emt 0:00:08]} Rxg5 {[%emt 0:01:56]} 70. Rxa3 {[%emt 0:00:13]} Ke7 {[%emt 0:00:04]} 71. Ra7+ {[%emt 0:00:07]} Kd8 {[%emt 0:00:07]} 72. Kd6 {[%emt 0:00:20]} Rf5 {[%emt 0:00:12]} 73. Ra8# {[%emt 0:04:45] Ke8} 1-0

[Event "Weekend Groninger Combinatie 2019"]
[Site "Groningen"]
[Date "2019.05.31"]
[Round "3.7"]
[White "Wichtrup, Jan-Louis"]
[Black "Enserink, Henk"]
[Result "1-0"]
[ECO "E94"]
[WhiteElo "2110"]
[BlackElo "1794"]
[Annotator "ChessBase"]
[PlyCount "115"]
[EventDate "2019.05.30"]
[EventType "swiss"]
[EventCountry "NED"]
[SourceTitle "playchess.com"]
[Source "ChessBase"]
[SourceQuality "1"]
[TimeControl "5400+30"]

1. d4 {[%emt 0:00:00]} Nf6 {[%emt 0:00:00]} 2. c4 {[%emt 0:00:40]} g6 {[%emt 0:00:05]} 3. Nc3 {[%emt 0:00:09]} Bg7 {[%emt 0:00:09]} 4. e4 {[%emt 0:00:07]} d6 {[%emt 0:00:17]} 5. Nf3 {[%emt 0:00:10]} O-O {[%emt 0:00:37]} 6. Be2 {[%emt 0:00:07]} Re8 {[%emt 0:00:30]} 7. O-O {[%emt 0:01:08]} Nbd7 {[%emt 0:00:29]} 8. Qc2 {[%emt 0:06:06]} e5 {[%emt 0:01:18]} 9. d5 {[%emt 0:00:51]} h6 {[%emt 0:03:55]} 10. Ne1 {[%emt 0:00:59]} Nh7 {[%emt 0:00:51]} 11. Be3 {[%emt 0:03:48]} Rf8 {[%emt 0:02:24]} 12. Nd3 {[%emt 0:04:23]} f5 {[%emt 0:00:37]} 13. f3 {[%emt 0:01:03]} Ndf6 {[%emt 0:03:59]} 14. c5 {[%emt 0:01:34]} f4 {[%emt 0:07:57]} 15. Bf2 {[%emt 0:00:34]} g5 {[%emt 0:00:48]} 16. cxd6 {[%emt 0:01:12]} cxd6 {[%emt 0:00:21]} 17. Nb5 {[%emt 0:06:38]} g4 {[%emt 0:03:38]} 18. Qc7 {[%emt 0:04:05]} gxf3 {[%emt 0:03:29]} 19. Qxd8 {[%emt 0:03:08]} Rxd8 {[%emt 0:00:25]} 20. gxf3 {[%emt 0:01:35]} Bh3 {[%emt 0:01:58]} 21. Rfc1 {[%emt 0:00:28]} Rd7 {[%emt 0:03:35]} 22. Bxa7 {[%emt 0:07:20]} Bf8 {[%emt 0:01:00]} 23. Kh1 {[%emt 0:00:51]} Ng5 {[%emt 0:01:08]} 24. Nf2 {[%emt 0:12:24]} Rg7 {[%emt 0:00:53]} 25. Bb6 {[%emt 0:02:18]} Bd7 {[%emt 0:05:53]} 26. Nc7 {[%emt 0:02:03]} Rc8 {[%emt 0:01:30]} 27. Rc3 {[%emt 0:05:43]} Nh3 {[%emt 0:05:39]} 28. Nxh3 {[%emt 0:00:53]} Bxh3 {[%emt 0:00:09]} 29. Bf1 {[%emt 0:04:41]} Bxf1 {[%emt 0:01:05]} 30. Rxf1 {[%emt 0:00:08]} Nd7 {[%emt 0:00:31]} 31. Bf2 {[%emt 0:00:42]} Nf6 {[%emt 0:05:58]} 32. Ne6 {[%emt 0:02:56]} Rxc3 {[%emt 0:00:43]} 33. bxc3 {[%emt 0:00:12]} Rf7 {[%emt 0:03:24]} 34. Rg1+ {[%emt 0:03:42]} Kh7 {[%emt 0:00:18]} 35. Rb1 {[%emt 0:02:06]} Kg8 {[%emt 0:01:34]} 36. Bh4 {[%emt 0:06:58]} Nh7 {[%emt 0:02:21]} 37. Rb6 {[%emt 0:01:08]} Rd7 {[%emt 0:01:54]} 38. a4 {[%emt 0:13:13]} Bg7 {[%emt 0:02:02]} 39. Nd8 {[%emt 0:01:42]} Rc7 {[%emt 0:03:42]} 40. Rb3 {[%emt 0:00:15]} Rc4 {[%emt 0:02:14]} 41. a5 {[%emt 0:01:27]} Ra4 {[%emt 0:00:35]} 42. Nxb7 {[%emt 0:00:34]} Ra1+ {[%emt 0:00:27]} 43. Kg2 {[%emt 0:00:05]} Ra2+ {[%emt 0:00:04]} 44. Kf1 {[%emt 0:00:56]} Rxh2 {[%emt 0:01:18]} 45. Ra3 {[%emt 0:00:47]} Rxh4 {[%emt 0:01:23]} 46. a6 {[%emt 0:00:06]} Ng5 {[%emt 0:00:29]} 47. a7 {[%emt 0:00:24]} Nxf3 {[%emt 0:00:43]} 48. a8=Q+ {[%emt 0:00:07]} Kh7 {[%emt 0:00:13]} 49. Qc8 {[%emt 0:00:35]} Rg4 {[%emt 0:01:57]} 50. Qf5+ {[%emt 0:00:34]} Rg6 {[%emt 0:00:17]} 51. c4 {[%emt 0:01:10]} Nh4 {[%emt 0:00:28]} 52. Qh3 {[%emt 0:00:37]} Bf6 {[%emt 0:00:32]} 53. Nxd6 {[%emt 0:00:21]} f3 {[%emt 0:00:39]} 54. Rxf3 {[%emt 0:00:37]} Nxf3 {[%emt 0:00:34]} 55. Qxf3 {[%emt 0:00:08]} Bd8 {[%emt 0:00:36]} 56. Qf5 {[%emt 0:00:34]} Bb6 {[%emt 0:01:57]} 57. Ne8 {[%emt 0:00:26]} h5 {[%emt 0:00:45]} 58. Qxh5+ {[%emt 0:00:15]} 1-0

[Event "Weekend Groninger Combinatie 2019"]
[Site "Groningen"]
[Date "2019.05.31"]
[Round "3.8"]
[White "Zwirs, Nico"]
[Black "Wierenga, Jael"]
[Result "1-0"]
[ECO "C06"]
[WhiteElo "2386"]
[BlackElo "1373"]
[Annotator "ChessBase"]
[PlyCount "43"]
[EventDate "2019.05.30"]
[EventType "swiss"]
[EventCountry "NED"]
[SourceTitle "playchess.com"]
[Source "ChessBase"]
[SourceQuality "1"]
[TimeControl "5400+30"]

1. e4 {[%emt 0:00:00]} e6 {[%emt 0:00:00]} 2. d4 {[%emt 0:00:00]} d5 {[%emt 0:00:00]} 3. Nd2 {[%emt 0:00:12]} Nf6 {[%emt 0:00:18]} 4. e5 {[%emt 0:00:07]} Nfd7 {[%emt 0:00:06]} 5. Bd3 {[%emt 0:00:07]} c5 {[%emt 0:00:17]} 6. c3 {[%emt 0:00:04]} Nc6 {[%emt 0:00:14]} 7. Ne2 {[%emt 0:00:13]} Be7 {[%emt 0:01:05]} 8. O-O {[%emt 0:00:26]} O-O {[%emt 0:00:41]} 9. Nf3 {[%emt 0:00:14]} f6 {[%emt 0:00:30]} 10. Nf4 {[%emt 0:00:51]} Nb6 {[%emt 0:00:49]} 11. exf6 {[%emt 0:03:00]} Rxf6 {[%emt 0:01:48]} 12. Nh5 {[%emt 0:02:21]} Rf8 {[%emt 0:02:26]} 13. Qc2 {[%emt 0:03:34]} h6 {[%emt 0:02:24]} 14. Bh7+ {[%emt 0:08:26]} Kh8 {[%emt 0:01:48]} 15. Nxg7 {[%emt 0:02:28]} Kxg7 {[%emt 0:06:17]} 16. Qg6+ {[%emt 0:00:10]} Kh8 {[%emt 0:00:06]} 17. Qxh6 {[%emt 0:00:07]} Rf7 {[%emt 0:01:55]} 18. Bg6+ {[%emt 0:00:06]} Kg8 {[%emt 0:00:08]} 19. Bxf7+ {[%emt 0:00:04]} Kxf7 {[%emt 0:00:07]} 20. Qh5+ {[%emt 0:00:05]} Kg7 {[%emt 0:02:53]} 21. Bh6+ {[%emt 0:00:06]} Kf6 {[%emt 0:00:28]} 22. Ne5 {[%emt 0:01:40]} 1-0

[Event "Weekend Groninger Combinatie 2019"]
[Site "Groningen"]
[Date "2019.05.31"]
[Round "3.9"]
[White "De Boer, Eelke"]
[Black "Aden, Meino"]
[Result "1-0"]
[ECO "C14"]
[WhiteElo "2333"]
[BlackElo "1921"]
[Annotator "ChessBase"]
[PlyCount "75"]
[EventDate "2019.05.30"]
[EventType "swiss"]
[EventCountry "NED"]
[SourceTitle "playchess.com"]
[Source "ChessBase"]
[SourceQuality "1"]
[TimeControl "5400+30"]

1. e4 {[%emt 0:00:00]} e6 {[%emt 0:00:00]} 2. d4 {[%emt 0:00:00]} d5 {[%emt 0:00:00]} 3. Nc3 {[%emt 0:00:00]} Nf6 {[%emt 0:00:00]} 4. Bg5 {[%emt 0:00:00]} Be7 {[%emt 0:00:00]} 5. e5 {[%emt 0:00:00]} Nfd7 {[%emt 0:00:00]} 6. Bxe7 {[%emt 0:00:04]} Qxe7 {[%emt 0:00:00]} 7. f4 {[%emt 0:00:05]} a6 {[%emt 0:00:11]} 8. Nf3 {[%emt 0:00:05]} c5 {[%emt 0:00:05]} 9. Qd2 {[%emt 0:00:03]} Nc6 {[%emt 0:00:07]} 10. dxc5 {[%emt 0:00:05]} Nxc5 {[%emt 0:00:18]} 11. a3 {[%emt 0:02:16]} b5 {[%emt 0:00:56]} 12. b4 {[%emt 0:00:40]} Nd7 {[%emt 0:00:25]} 13. Bd3 {[%emt 0:01:03]} Nb6 {[%emt 0:00:50]} 14. Ne2 {[%emt 0:00:16]} Nc4 {[%emt 0:00:48]} 15. Bxc4 {[%emt 0:00:07]} dxc4 {[%emt 0:00:53]} 16. Ned4 {[%emt 0:00:33]} Nxd4 {[%emt 0:00:45]} 17. Nxd4 {[%emt 0:00:09]} Bb7 {[%emt 0:02:11]} 18. O-O {[%emt 0:00:39]} O-O {[%emt 0:00:42]} 19. Qe3 {[%emt 0:22:35]} Rfd8 {[%emt 0:03:28]} 20. c3 {[%emt 0:06:32]} Qd7 {[%emt 0:03:19]} 21. a4 {[%emt 0:04:56]} Qd5 {[%emt 0:02:07]} 22. Rf2 {[%emt 0:00:20]} a5 {[%emt 0:02:37]} 23. Nxb5 {[%emt 0:12:29]} Qd7 {[%emt 0:10:36]} 24. Nd6 {[%emt 0:02:02]} axb4 {[%emt 0:01:42]} 25. cxb4 {[%emt 0:00:45]} Rxa4 {[%emt 0:01:09]} 26. Rxa4 {[%emt 0:01:55]} Qxa4 {[%emt 0:01:51]} 27. Nxb7 {[%emt 0:11:11]} Rd1+ {[%emt 0:00:43]} 28. Rf1 {[%emt 0:00:05]} Rxf1+ {[%emt 0:00:11]} 29. Kxf1 {[%emt 0:00:06]} Qxb4 {[%emt 0:00:43]} 30. Qd4 {[%emt 0:00:43]} h6 {[%emt 0:01:16]} 31. Nd6 {[%emt 0:00:14]} Qb1+ {[%emt 0:01:12]} 32. Kf2 {[%emt 0:08:44]} Qc2+ {[%emt 0:02:16]} 33. Kg3 {[%emt 0:00:09]} Qb3+ {[%emt 0:00:19]} 34. Kh4 {[%emt 0:00:10]} c3 {[%emt 0:02:20]} 35. Qa7 {[%emt 0:00:30]} Qc2 {[%emt 0:01:46]} 36. Qxf7+ {[%emt 0:01:01]} Kh7 {[%emt 0:00:28]} 37. Ne8 {[%emt 0:00:37]} Qg6 {[%emt 0:01:12]} 38. Nf6+ {[%emt 0:00:07]} 1-0

[Event "Weekend Groninger Combinatie 2019"]
[Site "Groningen"]
[Date "2019.05.31"]
[Round "3.10"]
[White "Van t Veld, Menno"]
[Black "Hilwerda, Jonas"]
[Result "0-1"]
[ECO "C55"]
[WhiteElo "1901"]
[BlackElo "2317"]
[Annotator "ChessBase"]
[PlyCount "56"]
[EventDate "2019.05.30"]
[EventType "swiss"]
[EventCountry "NED"]
[SourceTitle "playchess.com"]
[Source "ChessBase"]
[SourceQuality "1"]
[TimeControl "5400+30"]

1. e4 {[%emt 0:00:00]} e5 {[%emt 0:00:00]} 2. Nf3 {[%emt 0:00:00]} Nc6 {[%emt 0:00:00]} 3. Bc4 {[%emt 0:00:00]} Nf6 {[%emt 0:00:00]} 4. d3 {[%emt 0:00:00]} h6 {[%emt 0:00:29]} 5. c3 {[%emt 0:01:29]} d6 {[%emt 0:00:15]} 6. a4 {[%emt 0:02:04]} g6 {[%emt 0:01:24]} 7. h3 {[%emt 0:03:45]} Bg7 {[%emt 0:00:14]} 8. Nbd2 {[%emt 0:05:42]} O-O {[%emt 0:00:13]} 9. O-O {[%emt 0:02:23]} Kh8 {[%emt 0:09:31]} 10. Re1 {[%emt 0:04:42]} d5 {[%emt 0:05:38]} 11. exd5 {[%emt 0:05:30]} Nxd5 {[%emt 0:00:16]} 12. Nf1 {[%emt 0:00:17]} f5 {[%emt 0:04:53]} 13. Ng3 {[%emt 0:14:47]} Be6 {[%emt 0:02:19]} 14. Bb5 {[%emt 0:06:12]} Nde7 {[%emt 0:05:32]} 15. d4 {[%emt 0:07:01]} e4 {[%emt 0:05:59]} 16. Bf4 {[%emt 0:05:45]} a6 {[%emt 0:11:56]} 17. Bxc6 {[%emt 0:01:53]} Nxc6 {[%emt 0:00:21]} 18. Ne5 {[%emt 0:01:36]} Nxe5 {[%emt 0:01:52]} 19. Bxe5 {[%emt 0:00:02]} Bxe5 {[%emt 0:00:52]} 20. dxe5 {[%emt 0:00:02]} Qe7 {[%emt 0:00:25]} 21. f3 {[%emt 0:04:17]} Qg5 {[%emt 0:02:52]} 22. Kh2 {[%emt 0:01:35]} Rad8 {[%emt 0:01:37]} 23. Qc1 {[%emt 0:05:36]} Rd2 {[%emt 0:02:03]} 24. Re2 {[%emt 0:00:45]} Rfd8 {[%emt 0:00:35]} 25. Qe1 {[%emt 0:01:46]} exf3 {[%emt 0:01:41]} 26. gxf3 {[%emt 0:02:02]} Bc4 {[%emt 0:00:57]} 27. Rxd2 {[%emt 0:04:27]} Rxd2+ {[%emt 0:01:48]} 28. Kh1 {[%emt 0:00:07]} Bd5 {[%emt 0:01:13]} 0-1

[Event "Weekend Groninger Combinatie 2019"]
[Site "Groningen"]
[Date "2019.06.01"]
[Round "4.1"]
[White "Maris, Ivo"]
[Black "Elgersma, Simon"]
[Result "1-0"]
[ECO "A14"]
[WhiteElo "2386"]
[BlackElo "2088"]
[Annotator "ChessBase"]
[PlyCount "65"]
[EventDate "2019.05.30"]
[EventType "swiss"]
[EventCountry "NED"]
[SourceTitle "playchess.com"]
[Source "ChessBase"]
[SourceQuality "1"]
[TimeControl "5400+30"]

1. c4 {[%emt 0:00:00]} e6 {[%emt 0:00:34]} 2. g3 {[%emt 0:03:13]} Nf6 {[%emt 0:00:16]} 3. Bg2 {[%emt 0:00:07]} d5 {[%emt 0:00:05]} 4. Nf3 {[%emt 0:00:33]} Be7 {[%emt 0:00:09]} 5. O-O {[%emt 0:00:29]} O-O {[%emt 0:00:08]} 6. b3 {[%emt 0:00:09]} b6 {[%emt 0:00:30]} 7. Bb2 {[%emt 0:01:51]} c5 {[%emt 0:00:15]} 8. e3 {[%emt 0:03:35]} Nc6 {[%emt 0:00:23]} 9. Qe2 {[%emt 0:01:19]} Ba6 {[%emt 0:02:36]} 10. Nc3 {[%emt 0:02:06]} Rc8 {[%emt 0:00:58]} 11. d3 {[%emt 0:05:15]} Qd7 {[%emt 0:07:36]} 12. Rad1 {[%emt 0:01:41]} Rfd8 {[%emt 0:00:20]} 13. Nb5 {[%emt 0:03:55]} Bxb5 {[%emt 0:06:24]} 14. cxb5 {[%emt 0:04:45]} Na5 {[%emt 0:00:44]} 15. a4 {[%emt 0:01:35]} a6 {[%emt 0:04:42]} 16. Ne5 {[%emt 0:00:16]} Qe8 {[%emt 0:02:18]} 17. d4 {[%emt 0:06:07]} axb5 {[%emt 0:04:53]} 18. axb5 {[%emt 0:04:25]} Nxb3 {[%emt 0:05:05]} 19. dxc5 {[%emt 0:03:05]} bxc5 {[%emt 0:04:36]} 20. g4 {[%emt 0:02:49]} c4 {[%emt 0:10:03]} 21. g5 {[%emt 0:05:58]} Nd7 {[%emt 0:00:08]} 22. Nc6 {[%emt 0:01:17]} Rxc6 {[%emt 0:00:03]} 23. bxc6 {[%emt 0:00:04]} Nb6 {[%emt 0:08:16]} 24. c7 {[%emt 0:02:18]} Rd7 {[%emt 0:00:56]} 25. f4 {[%emt 0:02:25]} Bd6 {[%emt 0:10:40]} 26. Rf3 {[%emt 0:03:13]} g6 {[%emt 0:02:53]} 27. Rh3 {[%emt 0:01:08]} Rxc7 {[%emt 0:04:36]} 28. Bf6 {[%emt 0:02:40]} Nd7 {[%emt 0:01:53]} 29. Bc3 {[%emt 0:03:23]} Bf8 {[%emt 0:03:45]} 30. f5 {[%emt 0:01:11]} exf5 {[%emt 0:06:38]} 31. Bxd5 {[%emt 0:00:30]} Nb6 {[%emt 0:01:02]} 32. Qf3 {[%emt 0:07:19]} Rd7 {[%emt 0:07:23]} 33. Rxh7 {[%emt 0:00:34]} 1-0

[Event "Weekend Groninger Combinatie 2019"]
[Site "Groningen"]
[Date "2019.06.01"]
[Round "4.2"]
[White "Ernst, Sipke"]
[Black "Duijker, Rick"]
[Result "1-0"]
[ECO "D60"]
[WhiteElo "2540"]
[BlackElo "2164"]
[Annotator "ChessBase"]
[PlyCount "71"]
[EventDate "2019.05.30"]
[EventType "swiss"]
[EventCountry "NED"]
[SourceTitle "playchess.com"]
[Source "ChessBase"]
[SourceQuality "1"]
[TimeControl "5400+30"]

1. Nf3 {[%emt 0:01:26]} Nf6 {[%emt 0:04:33]} 2. c4 {[%emt 0:00:04]} e6 {[%emt 0:00:26]} 3. Nc3 {[%emt 0:01:01]} d5 {[%emt 0:00:19]} 4. d4 {[%emt 0:00:03]} Be7 {[%emt 0:01:59]} 5. Bg5 {[%emt 0:00:05]} O-O {[%emt 0:00:35]} 6. e3 {[%emt 0:00:01]} Nbd7 {[%emt 0:02:26]} 7. Bd3 {[%emt 0:00:39]} dxc4 {[%emt 0:01:12]} 8. Bxc4 {[%emt 0:00:04]} c5 {[%emt 0:00:18]} 9. O-O {[%emt 0:00:04]} a6 {[%emt 0:00:35]} 10. a4 {[%emt 0:00:03]} b6 {[%emt 0:00:48]} 11. Qe2 {[%emt 0:00:06]} Bb7 {[%emt 0:01:24]} 12. Rfd1 {[%emt 0:00:03]} Nd5 {[%emt 0:01:30]} 13. Bxe7 {[%emt 0:06:55]} Nxc3 {[%emt 0:02:01]} 14. bxc3 {[%emt 0:00:02]} Qxe7 {[%emt 0:00:14]} 15. e4 {[%emt 0:01:48]} Nf6 {[%emt 0:03:24]} 16. Bd3 {[%emt 0:00:52]} Bc6 {[%emt 0:03:02]} 17. Ne5 {[%emt 0:00:50]} Qb7 {[%emt 0:02:32]} 18. f3 {[%emt 0:02:14]} cxd4 {[%emt 0:01:28]} 19. cxd4 {[%emt 0:00:31]} Rfc8 {[%emt 0:01:01]} 20. Rdb1 {[%emt 0:01:34]} Nd7 {[%emt 0:06:11]} 21. Nc4 {[%emt 0:00:03]} Qc7 {[%emt 0:00:24]} 22. e5 {[%emt 0:00:03]} b5 {[%emt 0:09:55]} 23. Nd6 {[%emt 0:00:23]} Rcb8 {[%emt 0:04:31]} 24. Qc2 {[%emt 0:02:40]} Qb6 {[%emt 0:02:52]} 25. Bxh7+ {[%emt 0:00:04]} Kf8 {[%emt 0:00:19]} 26. Kh1 {[%emt 0:00:44]} g6 {[%emt 0:03:23]} 27. Bxg6 {[%emt 0:03:08]} fxg6 {[%emt 0:01:18]} 28. Qxg6 {[%emt 0:00:05]} Ke7 {[%emt 0:00:46]} 29. Qg5+ {[%emt 0:01:14]} Kf8 {[%emt 0:00:12]} 30. Qh6+ {[%emt 0:00:08]} Ke7 {[%emt 0:00:26]} 31. Qh4+ {[%emt 0:00:02]} Kf8 {[%emt 0:00:16]} 32. a5 {[%emt 0:00:03]} Qa7 {[%emt 0:01:06]} 33. Rc1 {[%emt 0:00:08]} Rc8 {[%emt 0:01:16]} 34. Qh8+ {[%emt 0:00:54]} Ke7 {[%emt 0:00:12]} 35. Nxc8+ {[%emt 0:00:07]} Rxc8 {[%emt 0:00:04]} 36. Qxc8 {[%emt 0:00:08]} 1-0

[Event "Weekend Groninger Combinatie 2019"]
[Site "Groningen"]
[Date "2019.06.01"]
[Round "4.3"]
[White "Wempe, Joost"]
[Black "Hoeksema, Hendrik Pieter"]
[Result "1/2-1/2"]
[ECO "E04"]
[WhiteElo "2261"]
[BlackElo "2349"]
[Annotator "ChessBase"]
[PlyCount "45"]
[EventDate "2019.05.30"]
[EventType "swiss"]
[EventCountry "NED"]
[SourceTitle "playchess.com"]
[Source "ChessBase"]
[SourceQuality "1"]
[TimeControl "5400+30"]

1. d4 {[%emt 0:02:55]} Nf6 {[%emt 0:00:00]} 2. c4 {[%emt 0:00:05]} e6 {[%emt 0:00:00]} 3. g3 {[%emt 0:00:05]} d5 {[%emt 0:00:49]} 4. Nf3 {[%emt 0:00:11]} dxc4 {[%emt 0:00:25]} 5. Bg2 {[%emt 0:02:56]} a6 {[%emt 0:00:26]} 6. O-O {[%emt 0:06:36]} b5 {[%emt 0:00:31]} 7. Ne5 {[%emt 0:00:08]} Nd5 {[%emt 0:00:14]} 8. b3 {[%emt 0:00:19]} cxb3 {[%emt 0:00:19]} 9. Qxb3 {[%emt 0:02:31]} Bb7 {[%emt 0:05:19]} 10. Nc3 {[%emt 0:09:51]} Nxc3 {[%emt 0:11:26]} 11. Qxc3 {[%emt 0:04:58]} Bxg2 {[%emt 0:00:58]} 12. Kxg2 {[%emt 0:00:06]} Qd5+ {[%emt 0:01:09]} 13. f3 {[%emt 0:15:21]} Bd6 {[%emt 0:08:49]} 14. e4 {[%emt 0:00:31]} Qb7 {[%emt 0:00:11]} 15. d5 {[%emt 0:11:40]} exd5 {[%emt 0:05:26]} 16. Ng4 {[%emt 0:00:14]} O-O {[%emt 0:02:29]} 17. Nf6+ {[%emt 0:01:11]} gxf6 {[%emt 0:03:09]} 18. Qxf6 {[%emt 0:00:25]} Nd7 {[%emt 0:00:08]} 19. Qf5 {[%emt 0:04:31]} Ne5 {[%emt 0:19:49]} 20. Bh6 {[%emt 0:07:25]} f6 {[%emt 0:05:56]} 21. f4 {[%emt 0:02:03]} Ng6 {[%emt 0:00:31]} 22. Bxf8 {[%emt 0:00:24]} Bxf8 {[%emt 0:02:38]} 23. exd5 {[%emt 0:01:53]} 1/2-1/2

[Event "Weekend Groninger Combinatie 2019"]
[Site "Groningen"]
[Date "2019.06.01"]
[Round "4.4"]
[White "Keuning, Selwin"]
[Black "Zwirs, Nico"]
[Result "0-1"]
[ECO "C46"]
[WhiteElo "2070"]
[BlackElo "2386"]
[Annotator "ChessBase"]
[PlyCount "66"]
[EventDate "2019.05.30"]
[EventType "swiss"]
[EventCountry "NED"]
[SourceTitle "playchess.com"]
[Source "ChessBase"]
[SourceQuality "1"]
[TimeControl "5400+30"]

1. e4 {[%emt 0:00:00]} e5 {[%emt 0:00:00]} 2. Nf3 {[%emt 0:00:00]} Nc6 {[%emt 0:00:00]} 3. Nc3 {[%emt 0:00:00]} g6 {[%emt 0:00:00]} 4. d4 {[%emt 0:01:50]} exd4 {[%emt 0:00:00]} 5. Nxd4 {[%emt 0:02:38]} Bg7 {[%emt 0:00:00]} 6. Be3 {[%emt 0:00:01]} Nf6 {[%emt 0:00:34]} 7. Bc4 {[%emt 0:01:43]} O-O {[%emt 0:02:00]} 8. f3 {[%emt 0:03:12]} Re8 {[%emt 0:05:19]} 9. O-O {[%emt 0:01:44]} Na5 {[%emt 0:15:38]} 10. Be2 {[%emt 0:12:36]} d5 {[%emt 0:01:36]} 11. Bg5 {[%emt 0:07:29]} h6 {[%emt 0:00:11]} 12. Bh4 {[%emt 0:11:41]} c5 {[%emt 0:22:00]} 13. Nb3 {[%emt 0:03:18]} g5 {[%emt 0:06:56]} 14. Bf2 {[%emt 0:05:50]} d4 {[%emt 0:05:19]} 15. Nb5 {[%emt 0:09:41]} Nxb3 {[%emt 0:03:19]} 16. axb3 {[%emt 0:00:29]} a6 {[%emt 0:00:07]} 17. Na3 {[%emt 0:10:33]} Nh5 {[%emt 0:01:43]} 18. g3 {[%emt 0:02:43]} Be6 {[%emt 0:10:04]} 19. Qd2 {[%emt 0:02:36]} Qc7 {[%emt 0:04:41]} 20. Rfe1 {[%emt 0:05:14]} Rad8 {[%emt 0:01:59]} 21. Bf1 {[%emt 0:00:59]} b5 {[%emt 0:00:48]} 22. Rad1 {[%emt 0:02:21]} Be5 {[%emt 0:02:36]} 23. Bg2 {[%emt 0:02:36]} Ng7 {[%emt 0:02:03]} 24. Nb1 {[%emt 0:00:37]} f6 {[%emt 0:02:15]} 25. Qc1 {[%emt 0:01:15]} h5 {[%emt 0:00:17]} 26. Nd2 {[%emt 0:00:07]} h4 {[%emt 0:00:30]} 27. Nf1 {[%emt 0:00:06]} hxg3 {[%emt 0:00:36]} 28. Nxg3 {[%emt 0:00:40]} Kf7 {[%emt 0:00:38]} 29. Re2 {[%emt 0:02:18]} Rh8 {[%emt 0:00:25]} 30. Be1 {[%emt 0:00:58]} Nh5 {[%emt 0:00:51]} 31. Nf1 {[%emt 0:01:07]} Nf4 {[%emt 0:01:50]} 32. Red2 {[%emt 0:00:24]} Nxg2 {[%emt 0:01:14]} 33. Rxg2 {[%emt 0:00:06]} Bh3 {[%emt 0:00:04]} 0-1